fUSD/lending_fUSD_20250716
["ID","MTS","AMOUNT","RATE_DAILY","PERIOD"]
[372448163,1752647461867,-415.55504371,0.00021954,2]
[372448164,1752647461876,-166.75489779,0.00021954,4]
[372448165,1752647461886,-479.39847024,0.00021962,2]
[372448166,1752647461896,-150.0,0.00021968,2]
[372448167,1752647461905,-504.57677426,0.00021973,2]
[372448168,1752647461914,-500.0,0.00021973,2]
[372448169,1752647461924,-500.0,0.00021973,2]
[372448170,1752647461933,-500.0,0.00021973,2]
[372448171,1752647461944,-500.0,0.00021973,2]
[372448172,1752647461954,-500.0,0.00021973,2]
[372448173,1752647461963,-500.62068923,0.00021973,2]
[372448174,1752647461973,-525.32884282,0.00021973,2]
[372448175,1752647461982,-159.65964935,0.00021973,2]
[372448176,1752647461992,-479.39847024,0.0002198,2]
[372448177,1752647462002,-1060.992755,0.0002198,7]
[372448178,1752647462011,-1060.992755,0.0002198,7]
[372448179,1752647462021,-151.0,0.0002198,7]
[372448180,1752647462030,-333.29228658,0.00021981,4]
[372448181,1752647462040,-337.33107616,0.00021981,4]
[372448182,1752647462050,-360.941293,0.00021981,4]
[372448183,1752647462060,-1345.85792874,0.00021981,2]
[372448184,1752647462069,-164.47001437,0.00021986,10]
[372448185,1752647462079,-321.6562496,0.00021986,10]
[372448186,1752647462089,-150.0,0.00021994,2]
[372448187,1752647462098,-1000.0,0.00022,2]
[372448188,1752647462108,-1022.0,0.00022,2]
[372448189,1752647462118,-2010.08,0.00022,2]
[372448190,1752647462127,-150.0,0.00022,2]
[372448191,1752647462136,-3000.0,0.00022,2]
[372448192,1752647462146,-3000.0,0.00022,2]
[372448193,1752647462158,-3000.0,0.00022,2]
[372448194,1752647462169,-2508.25,0.00022,2]
[372448195,1752647462178,-378.0,0.00022,2]
[372448196,1752647462189,-169.0,0.00022,2]
[372448197,1752647462199,-5002.66819893,0.00022,2]
[372448198,1752647462209,-239.0,0.00022,2]
[372448199,1752647462219,-150.0,0.00022,2]
[372448200,1752647462228,-2500.48020032,0.00022,2]
[372448201,1752647462238,-2631.58017696,0.00022003,6]
[372448202,1752647462247,-168.0,0.00022015,2]
[372448203,1752647462257,-150.0,0.0002202,2]
[372448204,1752647462267,-1000.0,0.00022025,2]
[372448205,1752647462276,-2006.44,0.00022037,2]
[372448206,1752647462286,-406.9085131,0.00022038,2]
[372448207,1752647462296,-500.0,0.00022038,2]
[372448208,1752647462307,-293.187796,0.00022038,7]
[372448209,1752647462316,-151.0,0.00022038,7]
[372448210,1752647462326,-151.0,0.00022038,7]
[372448211,1752647462336,-151.0,0.00022038,7]
[372448212,1752647462346,-500.0,0.00022038,2]
[372448213,1752647462356,-193.435213,0.00022038,7]
[372448214,1752647462366,-193.435213,0.00022038,7]
[372448215,1752647462376,-492.82960934,0.0002204,2]
[372448216,1752647462386,-492.82960934,0.00022044,2]
[372448217,1752647462395,-1715.79826357,0.00022044,2]
[372448218,1752647462405,-151.0,0.00022045,7]
[372448219,1752647462415,-151.0,0.00022045,7]
[372448220,1752647462425,-151.0,0.00022045,7]
[372448221,1752647462434,-151.0,0.00022045,7]
[372448222,1752647462446,-151.0,0.00022045,7]
[372448223,1752647462456,-154.988277,0.00022045,7]
[372448224,1752647462465,-151.0,0.00022045,7]
[372448225,1752647462475,-151.0,0.00022045,7]
[372448226,1752647462485,-151.0,0.00022045,7]
[372448227,1752647462494,-277.59379,0.00022045,7]
[372448228,1752647462504,-195.568276,0.00022045,7]
[372448229,1752647462514,-195.568276,0.00022045,7]
[372448230,1752647462525,-182.940037,0.00022045,7]
[372448231,1752647462535,-150.0,0.00022045,2]
[372448232,1752647462545,-500.0,0.00022048,2]
[372448233,1752647462556,-500.0,0.00022048,2]
[372448234,1752647462568,-151.0,0.00022048,7]
[372448235,1752647462578,-151.0,0.00022048,7]
[372448236,1752647462588,-500.0,0.00022048,2]
[372448237,1752647462597,-151.0,0.00022048,7]
[372448238,1752647462607,-682.81,0.00022048,2]
[372448239,1752647462617,-6561.38,0.00022048,2]
[372448240,1752647462627,-1152.25,0.00022048,2]
[372448241,1752647462636,-500.0,0.00022049,2]
[372448242,1752647462646,-1987.73,0.00022049,2]
[372448243,1752647462655,-2300.6634008,0.00022049,2]
[372448244,1752647462665,-4128.6234307,0.00022049,2]
[372448245,1752647462675,-155.829971,0.0002205,7]
[372448246,1752647462687,-151.0,0.0002205,7]
[372448247,1752647462699,-237.754216,0.0002205,7]
[372448248,1752647462709,-151.0,0.0002205,7]
[372448249,1752647462719,-151.0,0.0002205,7]
[372448250,1752647462729,-151.0,0.0002205,7]
[372448251,1752647462738,-259.000331,0.0002205,7]
[372448252,1752647462748,-259.000331,0.0002205,7]
[372448253,1752647462758,-151.0,0.0002205,7]
[372448254,1752647462767,-3894.307377,0.0002205,2]
[372448255,1752647462777,-232.7010194,0.0002205,2]
[372448256,1752647462786,-127591.6638371,0.0002205,2]
[372448257,1752647462795,-2309.0608015,0.0002205,2]
[372448258,1752647462805,-75213.1480468,0.0002205,2]
[372448259,1752647462814,-21830.0515844,0.0002205,2]
[372448260,1752647462824,-212.93419,0.0002205,7]
[372448261,1752647462941,-212.93419,0.0002205,7]
[372448262,1752647462951,-150.0,0.00022051,2]
[372448263,1752647462960,-500.0,0.00022053,2]
[372448264,1752647462970,-500.0,0.00022053,2]
[372448265,1752647462979,-500.0,0.00022053,2]
[372448266,1752647462988,-500.0,0.00022053,2]
[372448267,1752647462997,-500.0,0.00022053,2]
[372448268,1752647463007,-500.0,0.00022053,2]
[372448269,1752647463016,-361.84170685,0.00022053,2]
[372448270,1752647463025,-500.0,0.00022053,2]
[372448271,1752647463035,-500.0,0.00022053,2]
[372448272,1752647463044,-500.0,0.00022053,2]
[372448273,1752647463054,-500.0,0.00022053,2]
[372448274,1752647463064,-500.0,0.00022053,2]
[372448275,1752647463074,-265.4330037,0.00022053,2]
[372448276,1752647463084,-500.0,0.00022053,2]
[372448277,1752647463094,-182.99,0.00022053,2]
[372448278,1752647463103,-500.0,0.00022053,2]
[372448279,1752647463113,-500.0,0.00022053,2]
[372448280,1752647463122,-500.0,0.00022053,2]
[372448281,1752647463132,-500.0,0.00022053,2]
[372448282,1752647463141,-500.0,0.00022053,2]
[372448283,1752647463151,-682.81,0.00022053,2]
[372448284,1752647463162,-682.81,0.00022053,2]
[372448285,1752647463172,-682.81,0.00022053,2]
[372448286,1752647463181,-682.81,0.00022053,2]
[372448287,1752647463190,-682.81,0.00022053,2]
[372448288,1752647463201,-500.0,0.00022053,2]
[372448289,1752647463210,-500.0,0.00022053,2]
[372448290,1752647463220,-500.0,0.00022053,2]
[372448291,1752647463230,-500.0,0.00022053,2]
[372448292,1752647463240,-500.0,0.00022053,2]
[372448293,1752647463250,-500.0,0.00022053,2]
[372448294,1752647463261,-500.0,0.00022053,2]
[372448295,1752647463271,-249.46166064,0.00022053,2]
[372448296,1752647463280,-150.0,0.00022053,2]
[372448297,1752647463290,-300.0,0.00022053,2]
[372448298,1752647463300,-666.0,0.00022053,2]
[372448299,1752647463309,-1987.73,0.00022053,2]
[372448300,1752647463320,-1987.73,0.00022053,2]
[372448301,1752647463330,-1987.73,0.00022053,2]
[372448302,1752647463340,-1987.73,0.00022053,2]
[372448303,1752647463350,-1987.73,0.00022053,2]
[372448304,1752647463360,-1987.73,0.00022053,2]
[372448305,1752647463369,-1987.73,0.00022053,2]
[372448306,1752647463379,-2006.44,0.00022053,2]
[372448307,1752647463390,-2006.44,0.00022053,2]
[372448308,1752647463399,-2006.44,0.00022053,2]
[372448309,1752647463409,-2006.44,0.00022053,2]
[372448310,1752647463419,-2006.44,0.00022053,2]
[372448311,1752647463429,-2006.44,0.00022053,2]
[372448312,1752647463439,-2006.44,0.00022053,2]
[372448313,1752647463450,-2006.44,0.00022053,2]
[372448314,1752647463459,-2006.44,0.00022053,2]
[372448315,1752647463470,-2006.44,0.00022053,2]
[372448316,1752647463479,-2006.56422749,0.00022053,2]
[372448317,1752647463489,-1152.25,0.00022053,2]
[372448318,1752647463499,-1152.25,0.00022053,2]
[372448319,1752647463509,-1152.25,0.00022053,2]
[372448320,1752647463518,-1152.25,0.00022053,2]
[372448321,1752647463528,-1152.25,0.00022053,2]
[372448322,1752647463542,-150.0,0.00022053,2]
[372448323,1752647463552,-150.0,0.00022053,2]
[372448324,1752647463562,-150.0,0.00022053,2]
[372448325,1752647463572,-150.0,0.00022053,2]
[372448326,1752647463581,-150.0,0.00022053,2]
[372448327,1752647463591,-150.0,0.00022053,2]
[372448328,1752647463601,-849292.61495692,0.00022054,2]
[372448329,1752647463611,-16839.34808358,0.00022054,2]
[372448330,1752647463621,-460.0,0.00022054,2]
[372448331,1752647463631,-589.32,0.00022054,2]
[372448332,1752647463641,-460.0,0.00022054,2]
[372448333,1752647463651,-460.0,0.00022054,2]
[372448334,1752647463663,-460.0,0.00022054,2]
[372448335,1752647463673,-460.0,0.00022054,2]
[372448336,1752647463686,-462.44819564,0.00022054,2]
[372448337,1752647463695,-521.52,0.00022054,2]
[372448338,1752647463705,-151.0,0.00022054,7]
[372448339,1752647463714,-151.0,0.00022054,7]
[372448340,1752647463724,-151.0,0.00022054,7]
[372448341,1752647463734,-151.0,0.00022054,7]
[372448342,1752647463744,-151.0,0.00022054,7]
[372448343,1752647463754,-151.0,0.00022054,7]
[372448344,1752647463764,-460.0,0.00022054,2]
[372448345,1752647463774,-460.0,0.00022054,2]
[372448346,1752647463784,-540.0,0.00022054,2]
[372448347,1752647463793,-460.0,0.00022054,2]
[372448348,1752647463803,-460.0,0.00022054,2]
[372448349,1752647463812,-493.05370651,0.00022054,2]
[372448350,1752647463822,-460.0,0.00022054,2]
[372448351,1752647463831,-460.0,0.00022054,2]
[372448352,1752647463841,-460.0,0.00022054,2]
[372448353,1752647463851,-993.25,0.00022054,2]
[372448354,1752647463860,-657.92,0.00022054,2]
[372448355,1752647463870,-460.0,0.00022054,2]
[372448356,1752647463879,-460.0,0.00022054,2]
[372448357,1752647463889,-915.83,0.00022054,2]
[372448358,1752647463898,-430.91846146,0.00022054,2]
[372448359,1752647463908,-460.0,0.00022054,2]
[372448360,1752647463917,-460.0,0.00022054,2]
[372448361,1752647463927,-526.16404302,0.00022054,2]
[372448362,1752647463936,-460.0,0.00022054,2]
[372448363,1752647463946,-555.78,0.00022054,2]
[372448364,1752647463956,-460.0,0.00022054,2]
[372448365,1752647463965,-460.0,0.00022054,2]
[372448366,1752647463975,-460.0,0.00022054,2]
[372448367,1752647463986,-460.0,0.00022054,2]
[372448368,1752647463995,-192.77679141,0.00022054,2]
[372448369,1752647464005,-460.0,0.00022054,2]
[372448370,1752647464014,-462.97335058,0.00022054,2]
[372448371,1752647464024,-460.0,0.00022054,2]
[372448372,1752647464034,-270.62328876,0.00022054,2]
[372448373,1752647464043,-460.0,0.00022054,2]
[372448374,1752647464053,-460.0,0.00022054,2]
[372448375,1752647464062,-460.0,0.00022054,2]
[372448376,1752647464072,-463.7399888,0.00022054,2]
[372448377,1752647464082,-460.0,0.00022054,2]
[372448378,1752647464091,-460.0,0.00022054,2]
[372448379,1752647464100,-460.0,0.00022054,2]
[372448380,1752647464110,-430.03940108,0.00022054,2]
[372448381,1752647464120,-473.3,0.00022054,2]
[372448382,1752647464130,-150.0,0.00022054,2]
[372448383,1752647464139,-460.0,0.00022054,2]
[372448384,1752647464150,-460.0,0.00022054,2]
[372448385,1752647464159,-151.0,0.00022054,7]
[372448386,1752647464168,-1251.02,0.00022054,2]
[372448387,1752647464177,-151.0,0.00022054,7]
[372448388,1752647464187,-500.0,0.00022054,2]
[372448389,1752647464198,-460.0,0.00022054,2]
[372448390,1752647464207,-1001.9,0.00022054,2]
[372448391,1752647464216,-929.43205491,0.00022054,2]
[372448392,1752647464226,-460.0,0.00022054,2]
[372448393,1752647464235,-774.46,0.00022054,2]
[372448394,1752647464245,-460.0,0.00022054,2]
[372448395,1752647464254,-741.84,0.00022054,2]
[372448396,1752647464263,-151.0,0.00022054,7]
[372448397,1752647464273,-150.0,0.00022054,2]
[372448398,1752647464282,-151.0,0.00022054,7]
[372448399,1752647464292,-460.0,0.00022054,2]
[372448400,1752647464302,-460.0,0.00022054,2]
[372448401,1752647464311,-460.0,0.00022054,2]
[372448402,1752647464321,-463.60975588,0.00022054,2]
[372448403,1752647464331,-460.0,0.00022054,2]
[372448404,1752647464340,-422.24460787,0.00022054,2]
[372448405,1752647464349,-681.57,0.00022054,2]
[372448406,1752647464359,-151.0,0.00022054,7]
[372448407,1752647464368,-460.0,0.00022054,2]
[372448408,1752647464378,-488.16164168,0.00022054,2]
[372448409,1752647464388,-460.0,0.00022054,2]
[372448410,1752647464398,-460.0,0.00022054,2]
[372448411,1752647464408,-460.0,0.00022054,2]
[372448412,1752647464418,-1113.01,0.00022054,2]
[372448413,1752647464427,-460.0,0.00022054,2]
[372448414,1752647464436,-477.61211883,0.00022054,2]
[372448415,1752647464446,-492.41,0.00022054,2]
[372448416,1752647464456,-1023.27,0.00022054,2]
[372448417,1752647464466,-669.14,0.00022054,2]
[372448418,1752647464475,-460.0,0.00022054,2]
[372448419,1752647464485,-460.0,0.00022054,2]
[372448420,1752647464495,-460.0,0.00022054,2]
[372448421,1752647464506,-152.517987,0.00022054,7]
[372448422,1752647464515,-558.14,0.00022054,2]
[372448423,1752647464525,-460.0,0.00022054,2]
[372448424,1752647464535,-1584.59,0.00022054,2]
[372448425,1752647464544,-477.07059589,0.00022054,2]
[372448426,1752647464554,-460.0,0.00022054,2]
[372448427,1752647464563,-460.0,0.00022054,2]
[372448428,1752647464573,-460.0,0.00022054,2]
[372448429,1752647464582,-460.0,0.00022054,2]
[372448430,1752647464592,-460.0,0.00022054,2]
[372448431,1752647464602,-460.0,0.00022054,2]
[372448432,1752647464611,-460.0,0.00022054,2]
[372448433,1752647464620,-460.0,0.00022054,2]
[372448434,1752647464630,-460.0,0.00022054,2]
[372448435,1752647464639,-463.81553361,0.00022054,2]
[372448436,1752647464648,-460.0,0.00022054,2]
[372448437,1752647464657,-460.0,0.00022054,2]
[372448438,1752647464665,-821.08,0.00022054,2]
[372448439,1752647464675,-460.0,0.00022054,2]
[372448440,1752647464688,-869.21,0.00022054,2]
[372448441,1752647464698,-460.0,0.00022054,2]
[372448442,1752647464707,-460.0,0.00022054,2]
[372448443,1752647464717,-922.81,0.00022054,2]
[372448444,1752647464727,-3230.590099,0.00022054,2]
[372448445,1752647464737,-460.0,0.00022054,2]
[372448446,1752647464746,-207.12756856,0.00022054,2]
[372448447,1752647464756,-461.76599591,0.00022054,2]
[372448448,1752647464766,-460.0,0.00022054,2]
[372448449,1752647464776,-3740.90148,0.00022054,2]
[372448450,1752647464786,-460.0,0.00022054,2]
[372448451,1752647464795,-460.0,0.00022054,2]
[372448452,1752647464804,-3676.397568,0.00022054,2]
[372448453,1752647464814,-531.89093634,0.00022054,2]
[372448454,1752647464823,-460.0,0.00022054,2]
[372448455,1752647464832,-460.0,0.00022054,2]
[372448456,1752647464842,-460.0,0.00022054,2]
[372448457,1752647464851,-835.88,0.00022054,2]
[372448458,1752647464860,-1273.73,0.00022054,2]
[372448459,1752647464870,-460.0,0.00022054,2]
[372448460,1752647464880,-1000.0,0.00022054,2]
[372448461,1752647464889,-460.0,0.00022054,2]
[372448462,1752647464898,-460.0,0.00022054,2]
[372448463,1752647464908,-460.0,0.00022054,2]
[372448464,1752647464917,-151.0,0.00022054,7]
[372448465,1752647464927,-460.0,0.00022054,2]
[372448466,1752647464936,-460.0,0.00022054,2]
[372448467,1752647464946,-557.56,0.00022054,2]
[372448468,1752647464956,-475.52,0.00022054,2]
[372448469,1752647464966,-460.0,0.00022054,2]
[372448470,1752647464975,-1867.41,0.00022054,2]
[372448471,1752647464985,-460.0,0.00022054,2]
[372448472,1752647464994,-151.0,0.00022054,7]
[372448473,1752647465003,-154.332738,0.00022054,7]
[372448474,1752647465013,-460.0,0.00022054,2]
[372448475,1752647465023,-151.0,0.00022054,7]
[372448476,1752647465032,-151.0,0.00022054,7]
[372448477,1752647465041,-154.148355,0.00022054,7]
[372448478,1752647465050,-460.0,0.00022054,2]
[372448479,1752647465060,-1510.25,0.00022054,2]
[372448480,1752647465069,-460.0,0.00022054,2]
[372448481,1752647465080,-460.0,0.00022054,2]
[372448482,1752647465091,-460.0,0.00022054,2]
[372448483,1752647465100,-544.63692221,0.00022054,2]
[372448484,1752647465110,-621.52,0.00022054,2]
[372448485,1752647465119,-488.34,0.00022054,2]
[372448486,1752647465128,-623.95,0.00022054,2]
[372448487,1752647465137,-460.0,0.00022054,2]
[372448488,1752647465147,-460.0,0.00022054,2]
[372448489,1752647465157,-460.0,0.00022054,2]
[372448490,1752647465167,-760.89,0.00022054,2]
[372448491,1752647465177,-151.0,0.00022054,7]
[372448492,1752647465186,-151.0,0.00022054,7]
[372448493,1752647465198,-460.0,0.00022054,2]
[372448494,1752647465208,-1528.2,0.00022054,2]
[372448495,1752647465217,-151.0,0.00022054,7]
[372448496,1752647465227,-265.546736,0.00022054,7]
[372448497,1752647465236,-151.0,0.00022054,7]
[372448498,1752647465246,-151.0,0.00022054,7]
[372448499,1752647465255,-294.074278,0.00022054,7]
[372448500,1752647465264,-1433.87,0.00022054,2]
[372448501,1752647465275,-460.0,0.00022054,2]
[372448502,1752647465284,-460.0,0.00022054,2]
[372448503,1752647465294,-460.0,0.00022054,2]
[372448504,1752647465303,-535.17788233,0.00022054,2]
[372448505,1752647465312,-460.0,0.00022054,2]
[372448506,1752647465321,-460.0,0.00022054,2]
[372448507,1752647465331,-756.66,0.00022054,2]
[372448508,1752647465341,-1349.37,0.00022054,2]
[372448509,1752647465351,-460.0,0.00022054,2]
[372448510,1752647465361,-460.0,0.00022054,2]
[372448511,1752647465370,-460.0,0.00022054,2]
[372448512,1752647465380,-460.0,0.00022054,2]
[372448513,1752647465390,-1023.55,0.00022054,2]
[372448514,1752647465399,-460.0,0.00022054,2]
[372448515,1752647465409,-460.0,0.00022054,2]
[372448516,1752647465418,-460.0,0.00022054,2]
[372448517,1752647465428,-1134.86,0.00022054,2]
[372448518,1752647465437,-460.0,0.00022054,2]
[372448519,1752647465448,-564.04,0.00022054,2]
[372448520,1752647465458,-460.0,0.00022054,2]
[372448521,1752647465467,-460.0,0.00022054,2]
[372448522,1752647465477,-460.0,0.00022054,2]
[372448523,1752647465486,-460.0,0.00022054,2]
[372448524,1752647465496,-460.0,0.00022054,2]
[372448525,1752647465505,-460.0,0.00022054,2]
[372448526,1752647465514,-509.04,0.00022054,2]
[372448527,1752647465524,-631.23,0.00022054,2]
[372448528,1752647465534,-460.0,0.00022054,2]
[372448529,1752647465543,-460.0,0.00022054,2]
[372448530,1752647465553,-460.0,0.00022054,2]
[372448531,1752647465563,-1043.08,0.00022054,2]
[372448532,1752647465572,-460.0,0.00022054,2]
[372448533,1752647465582,-460.0,0.00022054,2]
[372448534,1752647465591,-261.36222209,0.00022054,2]
[372448535,1752647465600,-151.0,0.00022054,7]
[372448536,1752647465610,-151.0,0.00022054,7]
[372448537,1752647465619,-151.0,0.00022054,7]
[372448538,1752647465628,-460.0,0.00022054,2]
[372448539,1752647465638,-460.0,0.00022054,2]
[372448540,1752647465647,-460.0,0.00022054,2]
[372448541,1752647465657,-460.0,0.00022054,2]
[372448542,1752647465666,-460.0,0.00022054,2]
[372448543,1752647465677,-460.0,0.00022054,2]
[372448544,1752647465690,-460.0,0.00022054,2]
[372448545,1752647465701,-658.41,0.00022054,2]
[372448546,1752647465711,-460.0,0.00022054,2]
[372448547,1752647465720,-613.99,0.00022054,2]
[372448548,1752647465731,-460.0,0.00022054,2]
[372448549,1752647465740,-460.0,0.00022054,2]
[372448550,1752647465750,-460.0,0.00022054,2]
[372448551,1752647465760,-923.79,0.00022054,2]
[372448552,1752647465769,-643.27,0.00022054,2]
[372448553,1752647465779,-460.0,0.00022054,2]
[372448554,1752647465789,-460.0,0.00022054,2]
[372448555,1752647465799,-505.08443721,0.00022054,2]
[372448556,1752647465808,-623.47,0.00022054,2]
[372448557,1752647465817,-1826.86,0.00022054,2]
[372448558,1752647465827,-460.0,0.00022054,2]
[372448559,1752647465836,-672.64,0.00022054,2]
[372448560,1752647465846,-460.0,0.00022054,2]
[372448561,1752647465855,-460.0,0.00022054,2]
[372448562,1752647465865,-1157.21,0.00022054,2]
[372448563,1752647465876,-460.0,0.00022054,2]
[372448564,1752647465887,-467.89,0.00022054,2]
[372448565,1752647465896,-848.66,0.00022054,2]
[372448566,1752647465906,-615.26,0.00022054,2]
[372448567,1752647465916,-460.0,0.00022054,2]
[372448568,1752647465925,-995.04,0.00022054,2]
[372448569,1752647465935,-634.28,0.00022054,2]
[372448570,1752647465945,-460.0,0.00022054,2]
[372448571,1752647465955,-460.0,0.00022054,2]
[372448572,1752647465964,-460.0,0.00022054,2]
[372448573,1752647465973,-460.0,0.00022054,2]
[372448574,1752647465983,-460.0,0.00022054,2]
[372448575,1752647465993,-460.0,0.00022054,2]
[372448576,1752647466002,-460.0,0.00022054,2]
[372448577,1752647466012,-509.36002167,0.00022054,2]
[372448578,1752647466021,-460.0,0.00022054,2]
[372448579,1752647466030,-460.0,0.00022054,2]
[372448580,1752647466040,-256.34481136,0.00022054,2]
[372448581,1752647466049,-520.95,0.00022054,2]
[372448582,1752647466058,-463.25939081,0.00022054,2]
[372448583,1752647466068,-1247.11,0.00022054,2]
[372448584,1752647466078,-460.0,0.00022054,2]
[372448585,1752647466089,-460.0,0.00022054,2]
[372448586,1752647466100,-460.0,0.00022054,2]
[372448587,1752647466110,-460.0,0.00022054,2]
[372448588,1752647466120,-460.0,0.00022054,2]
[372448589,1752647466129,-460.0,0.00022054,2]
[372448590,1752647466139,-710.72,0.00022054,2]
[372448591,1752647466149,-629.23,0.00022054,2]
[372448592,1752647466160,-460.0,0.00022054,2]
[372448593,1752647466170,-460.0,0.00022054,2]
[372448594,1752647466181,-347.50158156,0.00022054,2]
[372448595,1752647466191,-624.6,0.00022054,2]
[372448596,1752647466201,-1234.07,0.00022054,2]
[372448597,1752647466211,-656.27,0.00022054,2]
[372448598,1752647466220,-994.92,0.00022054,2]
[372448599,1752647466230,-388.70770517,0.00022054,2]
[372448600,1752647466239,-888.19,0.00022054,2]
[372448601,1752647466249,-460.0,0.00022054,2]
[372448602,1752647466258,-1181.03,0.00022054,2]
[372448603,1752647466268,-460.0,0.00022054,2]
[372448604,1752647466277,-460.0,0.00022054,2]
[372448605,1752647466287,-851.69,0.00022054,2]
[372448606,1752647466297,-411.27936849,0.00022054,2]
[372448607,1752647466306,-460.0,0.00022054,2]
[372448608,1752647466316,-460.0,0.00022054,2]
[372448609,1752647466325,-411.73068748,0.00022054,2]
[372448610,1752647466335,-1701.69,0.00022054,2]
[372448611,1752647466344,-460.0,0.00022054,2]
[372448612,1752647466354,-460.0,0.00022054,2]
[372448613,1752647466364,-460.0,0.00022054,2]
[372448614,1752647466374,-922.11,0.00022054,2]
[372448615,1752647466383,-460.0,0.00022054,2]
[372448616,1752647466393,-2389.56,0.00022054,2]
[372448617,1752647466403,-493.69,0.00022054,2]
[372448618,1752647466412,-213.61035427,0.00022054,2]
[372448619,1752647466422,-151.0,0.00022054,7]
[372448620,1752647466432,-460.0,0.00022054,2]
[372448621,1752647466442,-151.0,0.00022054,7]
[372448622,1752647466452,-460.0,0.00022054,2]
[372448623,1752647466462,-151.0,0.00022054,7]
[372448624,1752647466471,-151.0,0.00022054,7]
[372448625,1752647466481,-462.31976494,0.00022054,2]
[372448626,1752647466492,-520.96,0.00022054,2]
[372448627,1752647466501,-460.0,0.00022054,2]
[372448628,1752647466511,-460.0,0.00022054,2]
[372448629,1752647466520,-153.232951,0.00022054,7]
[372448630,1752647466530,-1859.06,0.00022054,2]
[372448631,1752647466540,-1057.44,0.00022054,2]
[372448632,1752647466550,-795.18,0.00022054,2]
[372448633,1752647466560,-460.0,0.00022054,2]
[372448634,1752647466570,-630.47,0.00022054,2]
[372448635,1752647466579,-460.0,0.00022054,2]
[372448636,1752647466589,-462.4035856,0.00022054,2]
[372448637,1752647466599,-555.62,0.00022054,2]
[372448638,1752647466608,-1325.58,0.00022054,2]
[372448639,1752647466617,-460.0,0.00022054,2]
[372448640,1752647466626,-460.0,0.00022054,2]
[372448641,1752647466635,-550.54,0.00022054,2]
[372448642,1752647466645,-460.0,0.00022054,2]
[372448643,1752647466654,-460.0,0.00022054,2]
[372448644,1752647466669,-460.0,0.00022054,2]
[372448645,1752647466687,-460.0,0.00022054,2]
[372448646,1752647466698,-1415.78,0.00022054,2]
[372448647,1752647466707,-460.0,0.00022054,2]
[372448648,1752647466716,-1424.31,0.00022054,2]
[372448649,1752647466725,-460.0,0.00022054,2]
[372448650,1752647466734,-3035.24,0.00022054,2]
[372448651,1752647466743,-464.51680727,0.00022054,2]
[372448652,1752647466752,-460.0,0.00022054,2]
[372448653,1752647466761,-460.0,0.00022054,2]
[372448654,1752647466770,-460.0,0.00022054,2]
[372448655,1752647466780,-460.0,0.00022054,2]
[372448656,1752647466789,-151.0,0.00022054,7]
[372448657,1752647466798,-151.0,0.00022054,7]
[372448658,1752647466807,-174.05568958,0.00022054,7]
[372448659,1752647466817,-486.37,0.00022054,2]
[372448660,1752647466827,-460.0,0.00022054,2]
[372448661,1752647466836,-460.0,0.00022054,2]
[372448662,1752647466845,-460.0,0.00022054,2]